fUST/lending_fUST_20250825
["ID","MTS","AMOUNT","RATE_DAILY","PERIOD"]
[381197704,1756097441807,-8073.15036731,0.0004579,4]
[381197706,1756097441816,-151.0,0.0004579,120]
[381197708,1756097441826,-151.0,0.0004579,120]
[381197710,1756097441835,-151.0,0.0004579,120]
[381197712,1756097441844,-151.0,0.0004579,120]
[381197714,1756097441854,-151.0,0.0004579,120]
[381197716,1756097441863,-151.0,0.0004579,30]
[381197718,1756097441873,-151.0,0.0004579,30]
[381197720,1756097441882,-151.0,0.0004579,30]
[381197722,1756097441892,-151.0,0.0004579,120]
[381197724,1756097441901,-151.0,0.0004579,15]
[381197726,1756097441911,-151.0,0.0004579,120]
[381197728,1756097441920,-151.0,0.0004579,120]
[381197730,1756097441929,-151.0,0.0004579,120]
[381197732,1756097441938,-151.0,0.0004579,120]
[381197734,1756097441947,-151.0,0.0004579,120]
[381197736,1756097441956,-234.235595,0.0004579,120]
[381197738,1756097441966,-151.0,0.0004579,120]
[381197740,1756097441974,-234.235595,0.0004579,120]
[381197742,1756097441983,-283.472839,0.0004579,120]
[381197744,1756097441993,-234.235595,0.0004579,120]
[381197746,1756097442003,-234.235595,0.0004579,120]
[381197748,1756097442012,-4202.76,0.000458,14]
[381197750,1756097442021,-331618.27056032,0.000458,120]
[381197752,1756097442031,-153.543654,0.000458,120]
[381197754,1756097442040,-151.0,0.000458,120]
[381197756,1756097442049,-151.0,0.000458,120]
[381197758,1756097442058,-151.0,0.000458,120]
[381197760,1756097442067,-151.0,0.000458,120]
[381197762,1756097442076,-151.0,0.000458,120]
[381197764,1756097442085,-151.0,0.000458,120]
[381197766,1756097442095,-151.0,0.000458,120]
[381197768,1756097442104,-278.185774,0.000458,120]
[381197770,1756097442113,-151.0,0.000458,120]
[381197771,1756097442122,-151.0,0.000458,120]
[381197774,1756097442132,-151.0,0.000458,120]
[381197775,1756097442141,-6910.50677463,0.000458,2]
[381197777,1756097442151,-151.0,0.000458,120]
[381197779,1756097442161,-151.0,0.000458,120]
[381197781,1756097442171,-151.0,0.000458,120]
[381197783,1756097442180,-151.0,0.000458,120]
[381197785,1756097442190,-151.0,0.000458,120]
[381197787,1756097442199,-151.0,0.000458,120]
[381197789,1756097442209,-151.0,0.000458,120]
[381197791,1756097442218,-151.0,0.000458,120]
[381197793,1756097442229,-151.0,0.000458,120]
[381197795,1756097442238,-151.0,0.000458,120]
[381197797,1756097442247,-151.0,0.000458,120]
[381197799,1756097442256,-151.0,0.000458,120]
[381197801,1756097442265,-151.0,0.000458,120]
[381197803,1756097442274,-151.0,0.000458,120]
[381197805,1756097442284,-182.812274,0.000458,120]
[381197807,1756097442293,-182.812274,0.000458,120]
[381197809,1756097442303,-182.812274,0.000458,120]
[381197811,1756097442312,-151.0,0.000458,120]
[381197813,1756097442322,-182.812274,0.000458,120]
[381197815,1756097442332,-186.301162,0.000458,120]
[381197817,1756097442341,-186.301162,0.000458,120]
[381197819,1756097442350,-186.301162,0.000458,120]
[381197821,1756097442359,-151.0,0.000458,120]
[381197823,1756097442369,-186.301162,0.000458,120]
[381197825,1756097442378,-151.0,0.000458,120]
[381197827,1756097442387,-151.0,0.000458,30]
[381197829,1756097442397,-151.0,0.000458,120]
[381197831,1756097442407,-151.0,0.000458,120]
[381197833,1756097442417,-151.0,0.000458,120]
[381197834,1756097442429,-151.0,0.000458,120]
[381197836,1756097442439,-151.0,0.000458,120]
[381197838,1756097442448,-151.0,0.000458,120]
[381197841,1756097442458,-151.0,0.000458,30]
[381197842,1756097442468,-151.0,0.000458,30]
[381197844,1756097442477,-276.52340804,0.000458,30]
[381197847,1756097442486,-151.0,0.000458,120]
[381197848,1756097442495,-151.0,0.000458,15]
[381197850,1756097442505,-151.0,0.000458,120]
[381197852,1756097442515,-151.0,0.000458,120]
[381197854,1756097442524,-151.0,0.000458,120]
[381197856,1756097442533,-237.314023,0.000458,120]
[381197858,1756097442542,-234.235595,0.000458,120]
[381197860,1756097442552,-151.0,0.000458,120]
[381197862,1756097442561,-234.235595,0.000458,120]
[381197864,1756097442571,-234.235595,0.000458,120]
[381197866,1756097442580,-234.235595,0.000458,120]
[381197868,1756097442589,-167.97872232,0.000458,120]
[381197870,1756097442599,-9226.45756264,0.0004589,4]
[381197874,1756097442608,-394.6091605,0.0004589,30]
[381197876,1756097442617,-1631.82832732,0.000459,61]
[381197878,1756097442627,-151.0,0.000459,120]
[381197880,1756097442637,-151.0,0.000459,120]
[381197882,1756097442646,-151.0,0.000459,120]
[381197884,1756097442655,-158.440349,0.000459,120]
[381197886,1756097442664,-151.0,0.000459,120]
[381197888,1756097442674,-151.0,0.000459,120]
[381197890,1756097442683,-151.0,0.000459,120]
[381197892,1756097442692,-151.0,0.000459,120]
[381197894,1756097442702,-151.0,0.000459,120]
[381197896,1756097442711,-151.0,0.000459,120]
[381197898,1756097442721,-151.0,0.000459,120]
[381197900,1756097442731,-151.0,0.000459,120]
[381197902,1756097442740,-151.0,0.000459,120]
[381197905,1756097442749,-294.252089,0.000459,120]
[381197907,1756097442759,-151.0,0.000459,120]
[381197909,1756097442768,-151.0,0.000459,120]
[381197911,1756097442778,-151.0,0.000459,120]
[381197913,1756097442788,-151.0,0.000459,120]
[381197915,1756097442797,-151.0,0.000459,120]
[381197917,1756097442806,-151.0,0.000459,120]
[381197919,1756097442815,-151.0,0.000459,120]
[381197921,1756097442825,-151.0,0.000459,120]
[381197923,1756097442834,-2800.64605957,0.000459,2]
[381197925,1756097442846,-182.812274,0.000459,120]
[381197927,1756097442856,-182.812274,0.000459,120]
[381197930,1756097442867,-182.812274,0.000459,120]
[381197932,1756097442876,-151.0,0.000459,120]
[381197934,1756097442886,-182.812274,0.000459,120]
[381197936,1756097442897,-186.301162,0.000459,120]
[381197938,1756097442907,-186.301162,0.000459,120]
[381197939,1756097442916,-186.301162,0.000459,120]
[381197941,1756097442925,-151.0,0.000459,120]
[381197943,1756097442935,-186.301162,0.000459,120]
[381197945,1756097442947,-151.0,0.000459,120]
[381197947,1756097442958,-151.0,0.000459,120]
[381197949,1756097442967,-151.0,0.000459,30]
[381197951,1756097442977,-151.0,0.000459,120]
[381197953,1756097442995,-151.0,0.000459,120]
[381197955,1756097443014,-165.79025,0.000459,120]
[381197957,1756097443033,-151.0,0.000459,30]
[381197959,1756097443052,-151.0,0.000459,30]
[381197961,1756097443070,-151.0,0.000459,15]
[381197963,1756097443090,-151.0,0.000459,120]
[381197965,1756097443110,-151.0,0.000459,120]
[381197967,1756097443123,-151.0,0.000459,120]
[381197969,1756097443133,-234.235595,0.000459,120]
[381197971,1756097443142,-151.0,0.000459,120]
[381197973,1756097443151,-234.235595,0.000459,120]
[381197975,1756097443162,-234.235595,0.000459,120]
[381197977,1756097443171,-234.235595,0.000459,120]
[381197979,1756097443180,-1083.91391953,0.000459,90]
[381198008,1756097443766,-2427.00608047,0.000459,90]
[381198010,1756097443776,-73669.36373101,0.000459,90]
[381198177,1756097445421,-37074.92228723,0.000459,90]
[381198216,1756097445792,-245.0,0.0004579,30]
[381198218,1756097445802,-16607.29507237,0.000459,90]
[381209643,1756097664309,168.08509948,0.00020763,2]
[381209675,1756098003334,338.73084886,0.00020763,2]
[381209677,1756098173879,338.73084886,0.00020763,2]
[381209678,1756098278842,400.0,0.000241,2]
[381209679,1756098298419,400.0,0.000241,2]
[381209680,1756098320700,400.0,0.00027397,120]
[381209681,1756098332028,400.0,0.00027397,120]
[381209682,1756098351118,-1000.0,0.00025,2]
[381209683,1756098351139,-2000.0,0.00027,2]
[381209684,1756098351158,-1000.0,0.00027,2]
[381209685,1756098351177,-1000.0,0.00027,2]
[381209686,1756098351197,-1000.0,0.00028,2]
[381209687,1756098351217,-2000.0,0.00028,2]
[381209688,1756098351238,-200.0,0.00029418,120]
[381209689,1756098351257,-1000.0,0.0003,2]
[381209690,1756098351276,-10000.0,0.0003,60]
[381209691,1756098351295,-157.0,0.00031,120]
[381209692,1756098351315,-160.0,0.00031465,2]
[381209693,1756098351334,-2000.0,0.00032,2]
[381209694,1756098351353,-260.0,0.00032012,2]
[381209695,1756098351373,-216.04034502,0.00032304,2]
[381209696,1756098351392,-360.0,0.0003256,2]
[381209697,1756098351413,-186.3816433,0.00032927,2]
[381209698,1756098351433,-1000.0,0.00033045,30]
[381209699,1756098351452,-460.0,0.00033108,2]
[381209700,1756098351472,-157.0,0.000353,120]
[381209701,1756098351493,-293.673638,0.00036415,2]
[381209702,1756098351512,-608.2184785,0.00036729,2]
[381209703,1756098351531,-2430.4410401,0.00036729,2]
[381209704,1756098351550,-10000.0,0.00036771,2]
[381209705,1756098351568,-500.0,0.00037989,15]
[381209706,1756098351587,-500.0,0.00037989,15]
[381209707,1756098351607,-500.0,0.00037989,2]
[381209708,1756098351626,-500.0,0.00037989,15]
[381209709,1756098351646,-309.30788442,0.00037989,15]
[381209710,1756098351667,-500.0,0.00037989,7]
[381209711,1756098351687,-500.0,0.00037989,15]
[381209712,1756098351709,-500.0,0.00037989,15]
[381209713,1756098351731,-500.0,0.00037989,15]
[381209714,1756098351752,-436.84206957,0.00037989,15]
[381209715,1756098351772,-500.0,0.00037989,2]
[381209716,1756098351799,-500.0,0.00037989,7]
[381209717,1756098351818,-205.36546916,0.00037989,15]
[381209718,1756098351839,-500.0,0.00037989,15]
[381209719,1756098351859,-500.0,0.00037989,15]
[381209720,1756098351879,-500.0,0.00037989,2]
[381209721,1756098351900,-500.0,0.00037989,15]
[381209722,1756098351926,-519.03597142,0.00037989,7]
[381209723,1756098351948,-500.0,0.00037989,15]
[381209724,1756098351969,-569.29584546,0.00037989,2]
[381209725,1756098351995,-500.0,0.00037989,15]
[381209726,1756098352017,-500.0,0.00037989,15]
[381209727,1756098352040,-500.0,0.00037989,15]
[381209728,1756098352062,-500.0,0.00037989,15]
[381209729,1756098352083,-500.0,0.00037989,15]
[381209730,1756098352106,-500.0,0.00037989,15]
[381209731,1756098352127,-418.43046252,0.00037989,15]
[381209732,1756098352148,-500.0,0.00037989,15]
[381209733,1756098352171,-500.0,0.00037989,15]
[381209734,1756098352193,-192.0671058,0.00037989,15]
[381209736,1756098352983,400.0,0.000241,2]
[381209737,1756098364247,400.0,0.00027397,120]
[381209738,1756098384493,400.0,0.000241,2]
[381209739,1756098397348,400.0,0.00027397,120]
[381209740,1756098429087,-202.8186606,0.00034327,2]
[381209741,1756098429108,-5000.0,0.00035,30]
[381209742,1756098429128,-155.49738224,0.000379,2]
[381209743,1756098429150,-307.9328942,0.00037989,15]
[381209744,1756098429170,-542.25156961,0.00037989,15]
[381209745,1756098429192,-500.0,0.00037989,15]
[381209746,1756098429214,-500.0,0.00037989,2]
[381209747,1756098429236,-500.0,0.00037989,15]
[381209748,1756098429259,-239.77,0.0003799,50]
[381209749,1756098429279,-48571.8772804,0.0003799,3]
[381209750,1756098429300,-1961.41175264,0.0003799,3]
[381209751,1756098429320,-844.86965257,0.0003799,3]
[381209752,1756098429339,-232.4766599,0.0003799,3]
[381209753,1756098429360,-500.0,0.00037999,15]
[381209754,1756098429379,-411.43550882,0.00037999,15]
[381209755,1756098429399,-514.91450767,0.00038,5]
[381209756,1756098429418,-500.0,0.00038,5]
[381209757,1756098429437,-508.16767829,0.00038,5]
[381209758,1756098429457,-500.0,0.00038,5]
[381209759,1756098429477,-62894.16835706,0.00038,2]
[381209760,1756098433776,5000.0,0.000255,3]
[381209761,1756098442083,-10872.84239261,0.00038,2]
[381209763,1756098448083,-376.30788339,0.0003799,3]
[381209764,1756098448101,-7071.02311461,0.00038,2]
[381209765,1756098511821,205.127268,0.00013699,2]
[381209766,1756098512026,205.127268,0.00020187,2]
[381209813,1756098632660,-205.127268,0.00026676,2]
[381209815,1756098632669,-150.0,0.00030823,2]
[381209817,1756098632679,-150.0,0.00030823,10]
[381209819,1756098632688,-205.127268,0.00033165,2]
[381209821,1756098632698,-117.226686,0.00037999,120]
[381209823,1756098632712,-1001.083314,0.00037999,120]
[381209824,1756098632721,-602.04782917,0.00037999,15]
[381209825,1756098632730,-229.92176061,0.00037999,2]
[381209826,1756098632739,-381.87134106,0.00037999,15]
[381209827,1756098632749,-171.36128551,0.00037999,15]
[381209829,1756098632758,-370.33765491,0.00037999,2]
[381209831,1756098632768,-18452.33017438,0.00038,2]
[381209848,1756098638254,-9795.95548741,0.00038,2]
[381209849,1756098638266,-12589.25847,0.00038,2]
[381209852,1756098638559,-26385.09870983,0.00038,2]
[381209853,1756098638583,-1052.228429,0.00038,30]
[381209854,1756098638592,-155.2471057,0.00038,30]
[381209855,1756098638602,-581.6464433,0.00038,30]
[381209856,1756098638611,-306.0,0.00038,30]
[381209857,1756098638619,-153.0,0.00038,30]
[381209858,1756098638629,-202.8186606,0.00038231,2]
[381209859,1756098638638,-1000.0,0.00038356,15]
[381209860,1756098638647,-507.94210207,0.00038548,5]
[381209861,1756098638656,-4905.0,0.00039,30]
[381209862,1756098638665,-913.97322132,0.00039315,15]
[381209863,1756098638674,-199.0,0.000394,120]
[381209864,1756098638683,-157.0,0.000395,120]
[381209865,1756098638692,-1118.31,0.00039643,120]
[381209866,1756098638701,-205.127268,0.00039654,2]
[381209867,1756098638711,-200.0,0.00039848,120]
[381209868,1756098638720,-207.0,0.0004,120]
[381209869,1756098638729,-5000.0,0.0004,30]
[381209870,1756098638738,-155.49738224,0.00040481,2]
[381209871,1756098638747,-666.0,0.00040853,2]
[381209872,1756098638756,-1108.21,0.0004098,10]
[381209873,1756098638765,-1343.95816681,0.0004098,3]
[381209874,1756098638775,-23135.552073,0.0004099,3]
[381209875,1756098638784,-5000.0,0.00041,60]
[381209876,1756098638793,-1118.31,0.00041287,120]
[381209877,1756098638802,-979.094,0.00041853,2]
[381209878,1756098638811,-644.186,0.00041853,2]
[381209879,1756098638824,-2155.0,0.00041853,2]
[381209880,1756098638833,-376.30788339,0.00041896,2]
[381209881,1756098638843,-160.0,0.00041902,2]
[381209882,1756098638852,-844.86965257,0.00041902,2]
[381209883,1756098638862,-202.8186606,0.00042136,2]
[381209884,1756098638871,-160.0,0.00042749,3]
[381209885,1756098638880,-500.0,0.00042917,10]
[381209886,1756098638892,-199.64761663,0.00042917,10]
[381209888,1756098638901,-500.0,0.00042917,10]
[381209890,1756098638910,-500.0,0.00042917,10]
[381209892,1756098638919,-500.0,0.00042917,10]
[381209894,1756098638928,-1118.31,0.00042931,120]
[381209896,1756098638938,-161.0488651,0.00043014,30]
[381209898,1756098638947,-155.49738224,0.00043063,2]
[381209900,1756098638956,-764.85274484,0.00043465,10]
[381209902,1756098638965,-492.95915013,0.00043465,10]
[381209904,1756098638975,-1000.0,0.00043465,10]
[381209906,1756098638984,-3316.07240839,0.00043725,2]
[381209908,1756098638994,-157.0,0.000438,120]
[381209910,1756098639003,-5375.83266724,0.00043815,3]
[381209912,1756098639013,-769393.5866605,0.0004382,30]
[381209943,1756098639423,-76096.36981148,0.0004382,30]
[381209944,1756098639447,-1208.09359918,0.0004382,30]
[381209992,1756098640554,-13931.954656,0.0004382,30]
[381210353,1756098644139,-12179.21330823,0.0004382,30]
[381210388,1756098644474,-11615.300004,0.0004382,30]
[381210552,1756098646511,-300.83231122,0.00030823,2]
[381210554,1756098646520,-81.23266009,0.0004382,30]
[381213836,1756098870444,332.71,0.00027397,120]
[381213843,1756099450927,156.0,0.000255,3]
[381213844,1756099456667,156.0,0.000255,3]
[381213845,1756099470186,189.95203211,0.00020763,2]
[381213846,1756099483299,162.050949,0.00013699,2]
[381213847,1756099483514,162.050949,0.00020187,2]
[381213851,1756099556164,-162.050949,0.00026676,2]
[381213852,1756099556189,-150.07,0.00028136,15]
[381213853,1756099556211,-156.0,0.00031,120]
[381213854,1756099556232,-309.07823174,0.00032447,2]
[381213855,1756099556252,-162.050949,0.00033165,2]
[381213856,1756099556274,-156.0,0.000359,120]
[381213857,1756099556294,-503.52740183,0.00036654,5]
[381213858,1756099556315,-400.0,0.00037587,3]
[381213859,1756099556336,-400.0,0.00037587,2]
[381213860,1756099556356,-2000.0,0.00037588,7]
[381213861,1756099556377,-500.0,0.00038583,5]
[381213862,1756099556398,-10000.0,0.00038639,2]
[381213863,1756099556419,-304.85681,0.00038975,30]
[381213864,1756099556441,-162.050949,0.00039654,2]
[381213865,1756099556462,-500.47,0.0004,14]
[381213866,1756099556482,-500.0,0.0004,14]
[381213867,1756099556503,-500.0,0.0004,30]
[381213868,1756099556524,-500.0,0.0004,30]
[381213869,1756099556544,-500.0,0.0004,30]
[381213870,1756099556565,-500.0,0.0004,14]
[381213871,1756099556587,-280.0,0.00040194,5]
[381213872,1756099556607,-500.0,0.00040614,5]
[381213873,1756099556629,-156.0,0.000407,120]
[381213874,1756099556650,-2000.0,0.00040989,30]
[381213875,1756099556670,-232.4766599,0.0004099,3]
[381213876,1756099556691,-1016.52244813,0.00041,120]
[381213877,1756099556710,-628.01934775,0.00042088,15]
[381213878,1756099556731,-156.0,0.000421,15]
[381213879,1756099556750,-156.0,0.000421,20]
[381213880,1756099556773,-176.0,0.000421,25]
[381213881,1756099556793,-500.0,0.00042751,30]
[381213882,1756099556813,-2000.0,0.00043,120]
[381213883,1756099556834,-156.0,0.00043,30]
[381213884,1756099556855,-156.0,0.00043,35]
[381213885,1756099556876,-156.0,0.00043,40]
[381213886,1756099556897,-156.0,0.00043,45]
[381213887,1756099556917,-162.0,0.00043,90]
[381213888,1756099556938,-294.2662707,0.00043014,30]
[381213889,1756099556958,-581.6464433,0.00043014,30]
[381213890,1756099556979,-161.0488651,0.00043014,30]
[381213891,1756099557000,-294.2662707,0.00043014,30]
[381213892,1756099557021,-161.0488651,0.00043014,30]
[381213893,1756099557044,-581.6464433,0.00043014,30]
[381213894,1756099557065,-161.0488651,0.00043014,30]
[381213895,1756099557088,-218.8180696,0.00043014,30]
[381213896,1756099557110,-581.6464433,0.00043014,30]
[381213897,1756099557137,-161.0488651,0.00043014,30]
[381213898,1756099557158,-161.0488651,0.00043014,30]
[381213899,1756099557182,-271.2944635,0.00043014,30]
[381213900,1756099557203,-1001.65348462,0.00043162,15]
[381213901,1756099557224,-153.0,0.00043288,30]
[381213902,1756099557247,-153.0,0.00043288,30]
[381213903,1756099557268,-153.0,0.00043288,30]
[381213904,1756099557290,-153.0,0.00043288,30]
[381213905,1756099557310,-153.0,0.00043288,30]
[381213906,1756099557331,-153.0,0.00043288,30]
[381213907,1756099557352,-153.0,0.00043288,30]
[381213908,1756099557372,-153.0,0.00043288,30]
[381213909,1756099557393,-191.816,0.00043288,67]
[381213910,1756099557413,-155.49738224,0.00043615,2]
[381213911,1756099557434,-811.2746428,0.00043635,2]
[381213912,1756099557455,-202.8186606,0.00043635,2]
[381213913,1756099557478,-292.44773907,0.00043698,31]
[381213914,1756099557500,-1000.0,0.00043699,2]
[381213915,1756099557523,-1000.0,0.00043699,2]
[381213916,1756099557545,-1000.0,0.00043699,2]
[381213917,1756099557567,-1000.0,0.00043699,2]
[381213918,1756099557588,-1000.0,0.00043699,2]
[381213919,1756099557609,-1000.0,0.00043699,2]
[381213920,1756099557631,-1000.0,0.00043699,2]
[381213921,1756099557653,-1000.0,0.00043699,2]
[381213922,1756099557675,-368.11023241,0.00043699,2]
[381213923,1756099557695,-3316.07240839,0.000437,2]
[381213924,1756099557716,-923.5,0.00043705,10]
[381213925,1756099557737,-638.00485617,0.00043714,31]
[381213926,1756099557758,-978.52,0.00043715,120]
[381213927,1756099557779,-844.86965257,0.00043715,3]
[381213928,1756099557800,-376.30788339,0.00043715,3]
[381213929,1756099557822,-48546.43057614,0.00043715,3]
[381213937,1756099613085,-153.19,0.00028133,15]
[381213938,1756099613109,-36.76203211,0.00028233,15]
[381213947,1756099672164,899.04261687,0.00018,2]
[381213972,1756099832723,-150.75878594,0.00025205,2]
[381213974,1756099832733,-151.30865833,0.00026465,2]
[381213976,1756099832742,-1198.93255573,0.000275,2]
[381214011,1756099838580,-24333.57493718,0.000275,2]
[381214015,1756099838590,-153.18,0.00028133,15]
[381214018,1756099838599,-116.43796789,0.00028233,15]
[381214020,1756099838608,-153.18,0.00028233,15]
[381214022,1756099838618,-155.49738224,0.00030733,2]
[381214025,1756099838628,-415.85,0.000308,14]
[381214027,1756099838637,-500.0,0.00030832,2]
[381214029,1756099838647,-337.21861739,0.00030832,2]
[381214031,1756099838656,-780214.3049889,0.00030833,20]
[381214033,1756099838668,-76096.36981148,0.00030833,20]
[381214035,1756099838679,-501.18607715,0.00030833,20]
[381214038,1756099838694,-525.62621275,0.00030833,20]
[381214309,1756099841733,-340.365,0.00030823,10]
[381214311,1756099841744,-650.865,0.00030823,10]
[381214313,1756099841754,-5901.8212943,0.00030833,20]
[381214318,1756099841795,-1773.42209732,0.00030833,20]
[381214587,1756099844361,-10939.25844385,0.00030833,20]
[381223725,1756100006039,317.96110206,0.0002249,2]
[381223748,1756100180782,296.76369526,0.0002249,2]
[381223750,1756100362079,276.9794489,0.0002249,2]
[381223751,1756100552692,258.5141523,0.0002249,2]
[381223752,1756100604995,163.009185,0.00013699,2]
[381223753,1756100605210,163.009185,0.00020187,2]
[381223755,1756100736630,334.85581868,0.0002249,2]
[381223756,1756100851097,-334.85581868,0.00024216,2]
[381223757,1756100851122,-334.85581868,0.00025943,4]
[381223758,1756100851146,-502.28372818,0.00025943,4]
[381223759,1756100851166,-163.009185,0.00026676,2]
[381223760,1756100851190,-334.85581868,0.00027669,8]
[381223761,1756100851211,-2621.626056,0.00028219,30]
[381223762,1756100851232,-300.0,0.00028478,2]
[381223763,1756100851251,-10000.0,0.00028479,2]
[381223764,1756100851270,-666.0,0.00028563,2]
[381223765,1756100851294,-334.85581868,0.00029396,11]
[381223766,1756100851313,-155.49738224,0.00030732,2]
[381223767,1756100851332,-446.33,0.00030822,3]
[381223768,1756100851351,-311.41,0.00030822,3]
[381223769,1756100851371,-199.82,0.00030822,3]
[381223770,1756100851391,-599.49,0.00030822,3]
[381223771,1756100851410,-4878.14727586,0.00030826,2]
[381223772,1756100914437,334.85581868,0.00020763,2]
[381223773,1756100947221,-160.0,0.00028477,2]
[381223774,1756100947241,-536.01,0.00030822,3]
[381223775,1756100947262,-6203.51503397,0.00030829,2]
[381223776,1756100947282,-500.0,0.00030831,2]
[381223777,1756100947301,-500.0,0.00030831,2]
[381223778,1756100947322,-500.0,0.00030831,2]
[381223779,1756100947342,-294.71479363,0.00030831,2]
[381223780,1756100947366,-500.0,0.00030831,2]
[381223781,1756100947386,-310.89154976,0.00030831,2]
[381223782,1756100947408,-500.0,0.00030831,2]
[381223783,1756100947429,-500.0,0.00030831,2]
[381223784,1756100947450,-500.0,0.00030831,2]
[381223785,1756100947472,-500.0,0.00030831,2]
[381223786,1756100947491,-500.0,0.00030831,2]
[381223787,1756100947513,-500.0,0.00030831,2]
[381223788,1756100947536,-500.0,0.00030831,2]
[381223789,1756100947556,-205.91405665,0.00030831,2]
[381223790,1756100947578,-500.0,0.00030831,2]
[381223791,1756100947598,-500.0,0.00030831,2]
[381223792,1756100947618,-500.0,0.00030831,2]
[381223793,1756100947640,-450.13316881,0.00030831,2]
[381223794,1756100947659,-500.0,0.00030831,2]
[381223795,1756100947679,-532.02709529,0.00030831,2]
[381223796,1756100947700,-500.0,0.00030831,2]
[381223797,1756100947719,-541.7196201,0.00030831,2]
[381223798,1756100947742,-500.0,0.00030831,2]
[381223799,1756100947763,-500.0,0.00030831,2]
[381223800,1756100947785,-500.0,0.00030831,2]
[381223801,1756100947806,-500.0,0.00030831,2]
[381223802,1756100947828,-500.0,0.00030831,2]
[381223803,1756100947850,-500.0,0.00030831,2]
[381223804,1756100947870,-500.0,0.00030831,2]
[381223805,1756100947892,-500.0,0.00030831,2]
[381223806,1756100947913,-500.0,0.00030831,2]
[381223807,1756100947932,-368.24185191,0.00030831,2]
[381223808,1756100947954,-500.0,0.00030831,2]
[381223809,1756100947974,-500.0,0.00030831,2]
[381223810,1756100947994,-500.0,0.00030831,2]
[381223811,1756100948016,-500.0,0.00030831,2]
[381223812,1756100948036,-190.03242856,0.00030831,2]
[381223813,1756100948058,-500.0,0.00030831,2]
[381223814,1756100948078,-500.0,0.00030831,2]
[381223815,1756100948097,-500.0,0.00030831,2]
[381223816,1756100948331,-500.0,0.00030831,2]
[381223817,1756100948358,-500.0,0.00030831,2]
[381223818,1756100948379,-500.0,0.00030831,2]
[381223819,1756100948400,-500.0,0.00030831,2]
[381223820,1756100948420,-500.0,0.00030831,2]
[381223821,1756100948442,-500.0,0.00030831,2]
[381223822,1756100948466,-500.0,0.00030831,2]
[381223823,1756100948487,-500.0,0.00030831,2]
[381223824,1756100948507,-500.0,0.00030831,2]
[381223825,1756100948528,-374.83677198,0.00030831,2]
[381223826,1756100948552,-500.0,0.00030831,2]
[381223827,1756100948580,-500.0,0.00030831,2]
[381223828,1756100948608,-500.0,0.00030831,2]
[381223829,1756100948631,-500.0,0.00030831,2]
[381223830,1756100948653,-500.0,0.00030831,2]
[381223831,1756100948676,-259.81943251,0.00030831,2]
[381223832,1756100948698,-153.453,0.00030831,27]
[381223833,1756100948719,-500.0,0.00030832,27]
[381223834,1756100948740,-170.25,0.000309,7]
[381223835,1756100948761,-3030.12652835,0.0003099,2]
[381223836,1756100948783,-156.0,0.00031,120]
[381223837,1756100948805,-2210.71493892,0.00031516,2]
[381223838,1756100948827,-72532.1993628,0.00031616,2]